bitfinex-derivatives/quotes_ETHF0:USTF0_20240922
["timestamp","ask_amount","ask_price","bid_price","bid_amount"]
[1727020819883,3.59675,2570.9,2570.7,0.7833]
[1727020820573,3.2078,2570.9,2570.7,0.7833]
[1727020820784,0.791,2571.3,2570.8,3.8896]
[1727020820973,0.3889,2571.2,2570.8,0.38895]
[1727020821167,0.38892,2571.1,2570.7,5.39585308]
[1727020821882,0.38892,2571.1,2570.7,2.18805308]
[1727020823371,0.3889,2571.2,2570.8,0.38895]
[1727020824177,0.272,2571.5,2571.0,3.2078]
[1727020824370,0.272,2571.8,2571.4,1.01393138]
[1727020824575,0.272,2571.8,2571.3,4.73147462]
[1727020824576,3.2078,2572.0,2571.5,1.1673]
[1727020824884,0.38888,2571.4,2571.1,0.95356023]
[1727020825177,0.38884,2571.6,2571.1,1.15522409]
[1727020825381,0.38886,2571.5,2571.2,0.402]
[1727020825770,0.7576,2571.6,2571.2,0.402]
[1727020825981,0.38885,2571.5,2571.2,0.402]
[1727020826982,1.14645,2571.6,2571.2,0.402]
[1727020827786,0.38885,2571.5,2571.2,0.402]
[1727020828180,3.59668,2571.4,2571.1,0.3772]
[1727020828679,3.2078,2571.4,2571.1,0.3772]
[1727020829384,3.59667,2571.4,2571.1,0.3772]
[1727020830387,3.2078,2571.4,2571.1,0.3772]
[1727020830588,0.3917,2571.3,2571.1,0.3772]
[1727020830789,0.4,2571.2,2571.1,0.3772]
[1727020830984,0.7991,2571.2,2571.1,0.3772]
[1727020832282,1.188,2571.2,2571.1,0.3772]
[1727020832689,0.7991,2571.2,2571.1,0.3772]
[1727020833689,1.188,2571.2,2571.1,0.3772]
[1727020833890,0.38893,2571.0,2570.9,1.0139079]
[1727020834098,0.38893,2571.0,2570.8,1.0139079]
[1727020834294,0.78274,2570.9,2570.8,1.0139079]
[1727020834488,0.78274,2570.9,2570.7,0.3701]
[1727020834996,0.3936,2570.8,2570.7,0.3701]
[1727020835887,0.3938,2570.9,2570.7,0.3701]
[1727020836687,0.3938,2570.9,2570.7,0.75907]
[1727020836894,0.3938,2570.9,2570.7,0.3701]
[1727020837092,0.78274,2570.9,2570.7,0.3701]
[1727020837685,0.3938,2570.9,2570.7,0.3701]
[1727020837881,0.78274,2570.9,2570.7,0.3701]
[1727020838281,0.3938,2570.9,2570.7,0.75907]
[1727020839394,0.3938,2570.9,2570.7,0.75906]
[1727020839596,0.3938,2570.9,2570.8,0.38896]
[1727020839791,0.3938,2570.9,2570.7,1.7729779]
[1727020839998,0.3938,2570.9,2570.7,0.75907]
[1727020840190,0.3938,2570.9,2570.7,1.7729779]
[1727020840389,0.3938,2570.9,2570.7,0.75907]
[1727020840792,0.3938,2570.9,2570.7,0.3701]
[1727020841105,0.3938,2570.9,2570.7,1.7729779]
[1727020841889,0.3938,2570.9,2570.8,0.38896]
[1727020842087,0.3938,2570.9,2570.7,1.7729779]
[1727020842590,3.99033,2571.1,2570.8,1.4028679]
[1727020842795,4.37053,2571.1,2570.8,1.7889679]
[1727020842999,0.38893,2571.0,2570.8,1.7889679]
[1727020845599,0.38893,2571.0,2570.9,1.0139079]
[1727020845793,4.37052,2571.1,2570.9,1.0139079]
[1727020846193,4.37052,2571.1,2571.0,0.4]
[1727020846396,3.9816,2571.1,2571.0,0.4]
[1727020846700,0.3936,2571.1,2571.0,2.2038379]
[1727020846896,0.1148,2571.2,2571.1,0.38891]
[1727020848896,0.1148,2571.2,2571.1,1.4028179]
[1727020849087,0.1148,2571.2,2571.1,3.27289389]
[1727020849293,0.1148,2571.2,2571.1,6.84620325]
[1727020849498,0.1148,2571.2,2571.1,9.36411565]
[1727020849799,0.1148,2571.2,2571.1,12.08429178]
[1727020850301,0.1148,2571.2,2571.1,9.36411565]
[1727020850499,0.1148,2571.2,2571.1,1.36030927]
[1727020850705,0.3843,2571.2,2571.1,1.0182576]
[1727020850895,0.7668,2571.2,2571.1,1.0182576]
[1727020851097,0.7668,2571.2,2571.1,1.4071676]
[1727020851301,0.38888,2571.4,2571.1,2.76749053]
[1727020851506,0.38888,2571.4,2571.1,1.4071676]
[1727020851702,0.38888,2571.4,2571.0,2.32816057]
[1727020851703,0.7668,2571.5,2571.2,1.0182576]
[1727020851897,1.15566,2571.5,2571.3,0.4038]
[1727020852509,0.38887,2571.4,2571.3,0.4038]
[1727020853303,0.38888,2571.3,2571.2,1.0182576]
[1727020853503,0.38888,2571.3,2571.1,1.7836676]
[1727020853804,0.76318,2571.4,2571.2,1.0182576]
[1727020854106,0.38888,2571.3,2571.2,1.0182576]
[1727020854301,0.3743,2571.4,2571.2,1.0182576]
[1727020854496,0.38888,2571.3,2571.1,1.3947576]
[1727020854697,0.76318,2571.4,2571.2,1.0182576]
[1727020854898,0.38889,2571.3,2571.1,1.7836676]
[1727020855197,0.38889,2571.3,2571.1,1.3947576]
[1727020855396,0.38889,2571.3,2571.1,2.92191817]
[1727020855601,0.38889,2571.3,2571.1,1.3947576]
[1727020855910,3.97098,2571.4,2571.1,1.7836676]
[1727020856105,3.97098,2571.4,2571.2,1.0182576]
[1727020856300,3.5821,2571.4,2571.2,1.0182576]
[1727020856501,3.97098,2571.4,2571.2,1.0182576]
[1727020856902,0.38888,2571.3,2571.2,1.0182576]
[1727020858397,0.38888,2571.3,2571.1,1.3947576]
[1727020858811,0.38888,2571.3,2571.1,1.7836676]
[1727020859107,0.38888,2571.3,2571.2,1.0182576]
[1727020859507,3.97098,2571.4,2571.2,1.0182576]
[1727020860598,3.5821,2571.4,2571.2,1.4071476]
[1727020860799,3.59667,2571.4,2571.2,1.4071476]
[1727020861002,0.3843,2571.5,2571.3,0.38888]
[1727020861206,0.38884,2571.6,2571.4,0.3946]
[1727020861401,0.38884,2571.6,2571.4,1.8003576]
[1727020861612,4.37153,2571.7,2571.4,2.1892176]
[1727020862002,3.98773,2571.7,2571.5,0.38885]
[1727020862308,3.98773,2571.7,2571.4,2.1892176]
[1727020862698,3.5958,2572.0,2571.4,1.8003576]
[1727020862898,0.3911,2572.0,2571.8,0.3888]
[1727020863105,0.3911,2572.0,2571.7,1.0182576]
[1727020863299,3.2078,2571.8,2571.7,1.0182576]
[1727020863504,3.2078,2571.8,2571.6,1.4070876]
[1727020863806,0.38882,2571.8,2571.7,1.0182576]
[1727020864411,0.7768,2571.9,2571.6,1.4070976]
[1727020864719,0.38881,2571.8,2571.6,1.0182576]
[1727020865102,0.38882,2571.7,2571.6,1.0182576]
[1727020865405,0.38882,2571.7,2571.4,2.42042616]
[1727020865406,3.2078,2571.7,2571.4,1.0182576]
[1727020865615,3.2078,2571.7,2571.3,1.0182576]
[1727020865616,0.38885,2571.5,2571.3,1.0182576]
[1727020866007,0.3867,2571.4,2571.3,1.0182576]
[1727020866311,0.77557,2571.4,2571.3,1.0182576]
[1727020867308,0.3867,2571.4,2571.3,1.0182576]
[1727020868407,0.3867,2571.4,2571.3,2.37917234]
[1727020868707,0.77557,2571.4,2571.3,2.37917234]
[1727020868907,0.77557,2571.4,2571.3,1.0182576]
[1727020868908,3.98337,2571.4,2571.3,1.0182576]
[1727020869606,3.5945,2571.4,2571.3,1.0182576]
[1727020870221,3.98337,2571.4,2571.3,1.0182576]
[1727020870417,4.95555,2571.4,2571.3,1.0182576]
[1727020870624,0.38891,2571.1,2571.0,1.0182576]
[1727020870915,0.38893,2571.0,2570.9,1.0182576]
[1727020871217,1.15773,2571.0,2570.9,1.0182576]
[1727020871517,0.7688,2571.0,2570.9,1.4071976]
[1727020871714,0.7688,2571.0,2570.9,2.76821411]
[1727020871913,3.2078,2571.1,2570.9,3.27711708]
[1727020872111,3.2078,2571.1,2571.0,1.01875536]
[1727020872310,3.2078,2571.1,2571.0,1.38475536]
[1727020872813,3.2078,2571.1,2571.0,1.77368536]
[1727020873206,3.2078,2571.1,2571.0,1.38475536]
[1727020873726,3.6074,2571.1,2571.0,1.38475536]
[1727020874219,3.99631,2571.1,2571.0,1.38475536]
[1727020874413,3.99631,2571.1,2570.9,1.01875536]
[1727020874610,0.3891,2571.0,2570.9,1.01875536]
[1727020875917,0.3891,2571.0,2570.9,1.40769536]
[1727020876218,0.3891,2571.0,2570.9,3.37671548]
[1727020876516,0.3891,2571.0,2570.9,2.35796012]
[1727020876717,0.3891,2571.0,2570.9,4.48511719]
[1727020877216,3.6074,2571.1,2571.0,0.38893]
[1727020877217,3.2078,2571.1,2571.0,0.38893]
[1727020877409,3.2078,2571.1,2571.0,1.407589]
[1727020877603,3.2078,2571.1,2571.0,1.796489]
[1727020879315,3.2078,2571.4,2571.2,0.38889]
[1727020879517,3.2078,2571.4,2571.3,0.3901]
[1727020879816,3.2078,2571.4,2571.3,1.79763323]
[1727020880216,3.2078,2571.4,2571.3,0.779]
[1727020880619,3.59667,2571.4,2571.3,0.779]
[1727020882606,3.2078,2571.4,2571.3,0.779]
[1727020882813,3.2078,2571.4,2571.3,1.79763323]
[1727020884213,3.2078,2571.4,2571.3,3.54760032]
[1727020884924,3.2078,2571.4,2571.3,1.79763323]
[1727020886419,3.2078,2571.4,2571.3,2.18651323]
[1727020886924,0.38883,2571.7,2571.5,0.38885]
[1727020887123,3.2078,2571.8,2571.6,0.38883]
[1727020887314,3.2078,2571.8,2571.7,0.3916]
[1727020887726,0.7801,2572.0,2571.7,1.41011742]
[1727020888021,1.16889,2572.0,2571.7,1.79893742]
[1727020888722,0.38879,2571.9,2571.7,1.79893742]
[1727020888918,0.3888,2571.9,2571.7,1.41011742]
[1727020889116,0.38881,2571.8,2571.7,1.41011742]
[1727020889317,0.38882,2571.7,2571.6,1.01851742]
[1727020889520,0.38882,2571.7,2571.5,1.01851742]
[1727020889521,0.7684,2571.7,2571.5,1.01851742]
[1727020889822,0.3656,2571.6,2571.5,1.01851742]
[1727020890024,0.75444,2571.6,2571.5,1.01851742]
[1727020890321,0.3656,2571.6,2571.4,1.38751742]
[1727020890518,0.38885,2571.5,2571.4,1.38751742]
[1727020890726,0.75445,2571.6,2571.4,4.25445023]
[1727020890925,0.75445,2571.6,2571.5,1.01842872]
[1727020891123,0.76853,2571.7,2571.5,1.01842872]
[1727020891317,0.76853,2571.7,2571.6,0.3763]
[1727020893526,0.38884,2571.6,2571.5,1.01842872]
[1727020893717,0.38884,2571.6,2571.4,1.38742872]
[1727020893718,0.38885,2571.5,2571.4,1.38742872]
[1727020893913,3.97885,2571.5,2571.4,1.38742872]
[1727020894321,3.97885,2571.5,2571.4,0.369]
[1727020894922,3.97885,2571.5,2571.4,1.38742872]
[1727020895624,3.97885,2571.5,2571.4,2.74862726]
[1727020895925,3.2078,2571.5,2571.4,3.13749726]
[1727020896147,3.3226,2571.5,2571.4,4.85487704]
[1727020896726,3.3226,2571.5,2571.4,4.85470309]
[1727020897632,0.1148,2571.5,2571.4,4.85470309]
[1727020897925,3.3226,2571.5,2571.4,4.85470309]
[1727020898332,0.1148,2571.5,2571.4,4.85470309]
[1727020898629,3.3226,2571.5,2571.4,4.85470309]
[1727020898831,3.3226,2571.5,2571.4,3.25797444]
[1727020899127,3.71145,2571.5,2571.4,3.25797444]
[1727020899323,3.71145,2571.5,2571.4,0.369]
[1727020899929,3.71145,2571.5,2571.4,1.3878344]
[1727020900927,3.71145,2571.5,2571.4,0.369]
[1727020903423,3.71145,2571.5,2571.4,1.3878344]
[1727020903627,3.71145,2571.5,2571.4,0.369]
[1727020904228,3.71145,2571.5,2571.4,1.3878344]
[1727020907827,0.38887,2571.4,2571.3,1.0188344]
[1727020908136,0.38888,2571.3,2571.2,1.91704985]
[1727020908440,0.38888,2571.3,2571.2,3.27840953]
[1727020908837,0.38888,2571.3,2571.2,2.88930953]
[1727020909033,0.38888,2571.3,2571.2,2.38035429]
[1727020909436,0.38888,2571.3,2571.2,1.36135968]
[1727020909634,0.77718,2571.4,2571.2,1.36135968]
[1727020909832,0.77718,2571.4,2571.3,1.0190694]
[1727020910034,3.59666,2571.5,2571.3,2.76941293]
[1727020910245,3.59665,2571.5,2571.4,0.3893]
[1727020910535,3.59665,2571.5,2571.4,1.7815694]
[1727020911041,3.96215,2571.5,2571.4,1.7815694]
[1727020911834,3.2078,2571.5,2571.4,2.1704394]
[1727020912344,0.3855,2571.6,2571.4,3.53198409]
[1727020912537,0.3855,2571.6,2571.4,2.17045807]
[1727020912739,0.3855,2571.6,2571.5,1.01908807]
[1727020915242,0.3855,2571.6,2571.4,2.17045807]
[1727020916446,0.3855,2571.6,2571.4,1.78158807]
[1727020917347,0.3855,2571.6,2571.4,2.17044807]
[1727020917646,0.3855,2571.6,2571.5,1.01908807]
[1727020920255,0.77434,2571.6,2571.5,1.01908807]
[1727020925054,0.88914,2571.6,2571.5,2.38194901]
[1727020926149,4.09694,2571.6,2571.5,2.38194901]
[1727020926353,4.09694,2571.6,2571.5,1.01908807]
[1727020926558,4.09694,2571.6,2571.5,2.38204044]
[1727020927648,4.09694,2571.6,2571.5,1.01908807]
[1727020927851,5.06904,2571.6,2571.5,1.01908807]
[1727020928344,5.43984,2571.6,2571.5,1.01908807]
[1727020930350,3.3226,2571.6,2571.5,5.25180164]
[1727020930552,3.3226,2571.6,2571.5,7.71072221]
[1727020930747,3.3226,2571.6,2571.5,11.02043972]
[1727020930944,3.3226,2571.6,2571.5,11.98175727]
[1727020931249,2.7390403,2571.6,2571.5,11.98175727]
[1727020932249,2.7390403,2571.6,2571.5,10.41249051]
[1727020932456,2.7390403,2571.6,2571.5,11.98153499]
[1727020932953,2.5560403,2571.6,2571.5,12.37038499]
[1727020933158,3.5966,2571.9,2571.5,12.37038198]
[1727020933459,3.5966,2571.9,2571.8,1.01987034]
[1727020933651,3.5966,2571.9,2571.8,2.38287198]
[1727020933846,3.5966,2571.9,2571.8,2.71436623]
[1727020934159,3.2078,2571.9,2571.8,4.63298174]
[1727020934759,3.2078,2571.9,2571.8,4.24417174]
[1727020934961,3.2078,2571.9,2571.8,4.63298174]
[1727020935263,3.2078,2571.9,2571.8,3.63630715]
[1727020935447,3.2078,2571.9,2571.8,4.02511715]
[1727020935757,3.2078,2571.9,2571.8,4.63294671]
[1727020936553,3.2078,2571.9,2571.8,6.9911412]
[1727020936761,3.2078,2571.9,2571.8,10.11768635]
[1727020936965,3.2078,2571.9,2571.8,13.80960557]
[1727020937269,3.2078,2571.9,2571.8,9.72887635]
[1727020937452,3.2078,2571.9,2571.8,5.84087635]
[1727020937657,3.5855,2571.9,2571.8,4.24328607]
[1727020937865,3.97429,2571.9,2571.8,4.24328607]
[1727020938358,3.97429,2571.9,2571.8,1.0192698]
[1727020938560,0.38881,2571.8,2571.7,1.0192698]
[1727020938762,0.38882,2571.7,2571.6,1.0192698]
[1727020940462,0.38884,2571.6,2571.5,1.0192698]
[1727020940763,3.59664,2571.6,2571.5,2.37870878]
[1727020940955,4.56874,2571.6,2571.5,1.0192698]
[1727020941157,4.56874,2571.6,2571.4,1.52895487]
[1727020941158,0.38885,2571.5,2571.4,1.0192698]
[1727020941463,0.77285,2571.5,2571.4,1.0192698]
[1727020944463,0.77285,2571.5,2571.4,2.37842334]
[1727020944770,0.77285,2571.5,2571.4,2.37829602]
[1727020945065,0.77285,2571.5,2571.4,1.35915354]
[1727020945865,0.384,2571.5,2571.4,1.35915354]
[1727020946066,3.59665,2571.6,2571.4,2.88810841]
[1727020946261,3.59665,2571.6,2571.5,1.0193833]
[1727020946962,0.38885,2571.6,2571.5,1.0193833]
[1727020947273,3.59665,2571.6,2571.5,1.0193833]
[1727020951975,0.38885,2571.6,2571.5,1.0193833]
[1727020952878,0.38883,2571.7,2571.5,1.0193833]
[1727020953178,0.38883,2571.7,2571.6,1.40548206]
[1727020953377,0.77671,2571.8,2571.6,1.79078206]
[1727020953678,0.77671,2571.8,2571.7,0.3897]
[1727020954069,0.89151,2571.8,2571.7,0.3897]
[1727020954671,0.89151,2571.8,2571.6,1.40468206]
[1727020954672,0.38882,2571.7,2571.6,1.40468206]
[1727020954870,3.97542,2571.7,2571.6,1.40468206]
[1727020955576,3.97542,2571.7,2571.6,1.01938206]
[1727020960278,4.94749,2571.7,2571.6,1.01938206]
[1727020960474,4.55867,2571.7,2571.5,1.01948493]
[1727020960991,4.94749,2571.7,2571.6,1.01948493]
[1727020961988,4.94749,2571.7,2571.5,1.01948493]
[1727020961989,0.38884,2571.6,2571.5,1.01948493]
[1727020962186,0.38884,2571.6,2571.5,1.35961281]
[1727020962390,1.36099,2571.5,2571.4,2.30395487]
[1727020962592,1.94428,2571.5,2571.4,1.01956077]
[1727020962797,6.22203,2571.4,2571.3,0.20744077]
[1727020963080,10.61552603,2571.4,2570.9,0.60681935]
[1727020963287,3.59673,2571.0,2570.9,0.60681935]
[1727020963878,4.56906,2571.0,2570.9,0.60681935]
[1727020964379,0.38894,2570.9,2570.8,1.967]
[1727020964584,0.76104,2570.9,2570.8,1.967]
[1727020968589,0.76104,2570.9,2570.7,2.0800651]
[1727020970091,0.38896,2570.8,2570.7,2.0800651]
[1727020974487,0.38896,2570.8,2570.7,0.86644718]
[1727020974795,3.59674,2571.0,2570.7,1.25541718]
[1727020974986,3.59674,2571.0,2570.7,0.76997]
[1727020975484,3.59674,2571.0,2570.7,0.381]
[1727020975687,3.59674,2571.0,2570.7,0.76997]
[1727020977695,3.59674,2571.0,2570.7,0.381]
[1727020977696,0.38895,2570.9,2570.7,0.381]
[1727020978101,0.38896,2570.8,2570.7,0.381]
[1727020978295,0.38895,2570.9,2570.7,0.381]
[1727020978595,3.2078,2571.0,2570.7,0.381]
[1727020978783,0.38895,2570.9,2570.7,0.381]
[1727020979496,0.38894,2570.9,2570.7,0.381]
[1727020980397,3.59674,2571.0,2570.7,0.381]
[1727020980603,0.38895,2570.9,2570.7,0.381]
[1727020982296,3.2078,2571.0,2570.7,0.76997]
[1727020982297,3.59674,2571.0,2570.7,0.76997]
[1727020982497,0.38895,2570.9,2570.7,0.381]
[1727020983005,0.38896,2570.8,2570.7,0.381]
[1727020983594,0.38897,2570.7,2570.6,0.3669]
[1727020984996,3.59677,2570.7,2570.6,0.3669]
[1727020985991,0.38897,2570.7,2570.6,0.3669]
[1727020986197,3.59677,2570.7,2570.6,0.3669]
[1727020988490,0.38897,2570.7,2570.6,0.3669]
[1727020988791,3.59677,2570.7,2570.6,0.3669]
[1727020989601,3.59677,2570.7,2570.6,1.7669]
[1727020990097,3.59677,2570.7,2570.6,0.3669]
[1727020990306,3.59677,2570.7,2570.6,1.7669]
[1727020991206,3.59677,2570.7,2570.6,0.3669]
[1727020994994,0.38902,2570.4,2570.3,1.4]
[1727020995198,0.38902,2570.4,2570.3,1.7795]
[1727020995994,0.3894,2570.6,2570.3,1.7795]
[1727020996195,0.38902,2570.4,2570.3,1.7795]
[1727020996997,1.36191,2570.6,2570.2,0.386]
[1727020997189,1.36191,2570.6,2570.2,2.1612]
[1727020997190,0.3801,2570.5,2570.2,2.1612]
[1727020997393,0.38902,2570.4,2570.2,2.1612]
[1727020997903,0.389,2570.5,2570.2,2.1612]
[1727020998105,0.389,2570.5,2570.4,1.4]
[1727020999407,3.59678,2570.7,2570.4,1.78901]
[1727020999604,3.59678,2570.7,2570.6,1.4]
[1727021000109,3.59678,2570.7,2570.6,1.795]
[1727021000296,3.2078,2570.7,2570.6,1.795]
[1727021000709,3.59677,2570.7,2570.6,1.795]
[1727021001200,3.59677,2570.7,2570.6,0.395]
[1727021004003,3.2078,2570.7,2570.6,0.395]
[1727021004201,3.59677,2570.7,2570.6,0.395]
[1727021005202,3.2078,2570.7,2570.6,0.395]
[1727021005398,3.59677,2570.7,2570.6,0.395]
[1727021006308,0.38899,2570.6,2570.5,0.3837]
[1727021010207,3.2078,2570.7,2570.5,1.7837]
[1727021010410,0.38895,2570.9,2570.6,1.52895487]
[1727021010603,3.59674,2571.0,2570.8,1.4]
[1727021010922,3.2078,2571.0,2570.9,0.7478]
[1727021011206,0.7821,2571.1,2570.9,3.89302569]
[1727021011400,0.7821,2571.1,2570.9,2.53674]
[1727021012017,0.7821,2571.1,2570.9,3.67675487]
[1727021012405,0.7821,2571.1,2570.9,2.1478]
[1727021012908,0.7821,2571.1,2570.9,0.7478]
[1727021013103,0.7821,2571.1,2570.9,2.1478]
[1727021014916,1.17102,2571.1,2570.9,2.1478]
[1727021016215,1.17102,2571.1,2570.9,0.7478]
[1727021016422,0.7821,2571.1,2570.9,0.7478]
[1727021016611,1.17102,2571.1,2570.9,0.7478]
[1727021018212,4.37882,2571.1,2570.9,0.7478]
[1727021020623,1.17102,2571.1,2570.9,0.7478]
[1727021020919,4.37883,2571.1,2570.9,0.7478]
[1727021022315,3.2078,2571.0,2570.9,0.7478]
[1727021025221,1.17103,2571.1,2570.9,0.7478]
[1727021025419,3.2078,2571.0,2570.9,0.7478]
[1727021029727,3.59673,2571.0,2570.9,0.7478]
[1727021030127,8.06973,2571.0,2570.6,1.52895487]
[1727021030422,8.06973,2571.0,2570.5,2.33205487]
[1727021030423,0.38899,2570.6,2570.5,2.33205487]
[1727021030621,0.38899,2570.6,2570.5,2.15888321]
[1727021030825,0.78139,2570.6,2570.5,2.15888321]
[1727021032128,0.78139,2570.6,2570.5,0.8031]
[1727021033631,0.38902,2570.4,2570.3,1.52895487]
[1727021033830,0.38905,2570.2,2570.1,1.52895487]
[1727021034039,0.38905,2570.2,2570.1,2.88490308]
[1727021034339,0.38905,2570.2,2570.0,2.80780388]
[1727021034832,0.77315,2570.2,2570.0,2.80780388]
[1727021035237,0.77315,2570.2,2570.0,2.32245487]
[1727021036339,0.77315,2570.2,2570.0,0.7935]
[1727021039440,3.98095,2570.2,2570.0,0.7935]
[1727021040035,0.38907,2570.1,2570.0,0.7935]
[1727021040231,3.98096,2570.2,2570.0,0.7935]
[1727021041743,3.5919,2570.2,2570.0,1.18258]
[1727021041944,3.5919,2570.2,2570.0,2.1935]
[1727021042140,3.2078,2570.2,2570.0,2.58258]
[1727021042348,3.59686,2570.2,2570.0,2.1935]
[1727021042648,3.59686,2570.2,2570.0,0.7935]
[1727021042946,0.405,2570.1,2570.0,0.7935]
[1727021044053,0.79407,2570.1,2570.0,0.7935]
[1727021045251,0.38911,2569.8,2569.7,0.3972]
[1727021045551,0.38911,2569.8,2569.7,0.7934]
[1727021045945,0.76971,2569.8,2569.7,0.7934]
[1727021046145,1.13601,2569.8,2569.7,0.7934]
[1727021046340,1.13601,2569.8,2569.7,0.3962]
[1727021046543,0.38914,2569.7,2569.5,0.3901]
[1727021047048,0.38913,2569.7,2569.5,0.3901]
[1727021047347,2.1469,2569.8,2569.4,0.3962]
[1727021047348,0.38914,2569.6,2569.4,0.3962]
[1727021049552,0.38914,2569.7,2569.4,0.78537]
[1727021049748,0.38914,2569.6,2569.4,0.3962]
[1727021050156,0.38914,2569.6,2569.4,1.7962]
[1727021050354,0.38914,2569.7,2569.4,2.18537]
[1727021050657,1.13602,2569.8,2569.6,1.4]
[1727021050857,1.13602,2569.8,2569.7,0.3794]
[1727021052758,0.7469,2569.8,2569.7,0.3794]
[1727021052955,0.3806,2569.8,2569.4,1.7962]
[1727021053157,0.76244,2569.7,2569.5,0.3878]
[1727021054359,0.3733,2569.7,2569.5,0.3878]
[1727021054658,0.38914,2569.6,2569.5,0.3878]
[1727021056056,0.76243,2569.7,2569.5,0.3878]
[1727021057255,0.38914,2569.6,2569.5,0.3878]
[1727021057460,3.59694,2569.6,2569.5,0.3878]
[1727021058158,0.38916,2569.5,2569.4,0.3962]
[1727021058363,1.78916,2569.5,2569.4,0.3962]
[1727021066659,1.78916,2569.5,2569.2,0.3908]
[1727021066868,0.7944,2569.4,2569.2,0.3908]
[1727021067467,0.7944,2569.4,2569.2,0.78]
[1727021067668,1.18358,2569.4,2569.2,0.3908]
[1727021068469,0.3892,2569.2,2569.1,0.3865]
[1727021068661,1.7892,2569.2,2569.1,0.3865]
[1727021069366,0.38923,2569.0,2568.9,0.3767]
[1727021069559,4.99703,2569.0,2568.9,0.7424]
[1727021070864,3.59703,2569.0,2568.9,0.7424]
[1727021071162,4.6078,2569.0,2568.5,1.908]
[1727021071365,4.6078,2569.0,2568.6,1.50598]
[1727021071366,0.76025,2568.9,2568.6,1.50598]
[1727021071566,0.371,2568.9,2568.6,1.50598]
[1727021071769,0.76025,2568.9,2568.6,1.50598]
[1727021071969,0.38925,2568.9,2568.6,1.50598]
[1727021072165,4.99704,2569.0,2568.6,1.50598]
[1727021072367,3.2078,2569.0,2568.7,1.4]
[1727021072576,3.2078,2569.0,2568.9,1.78925]
[1727021072871,3.2078,2569.0,2568.9,1.4]
[1727021073265,3.2078,2569.0,2568.9,1.7872]
[1727021074771,3.2078,2569.0,2568.9,2.17645]
[1727021075177,3.2078,2569.0,2568.9,1.7872]
[1727021075370,3.2078,2569.0,2568.9,0.3872]
[1727021075566,3.2078,2569.0,2568.9,0.77645]
[1727021075772,3.2078,2569.0,2568.9,2.17645]
[1727021077167,3.2078,2569.0,2568.9,6.06925]
[1727021077485,0.1148,2569.5,2569.3,0.38917]
[1727021077777,0.50396,2569.5,2569.4,1.1669]
[1727021078269,0.1148,2569.5,2569.4,1.1669]
[1727021082269,4.99695,2569.6,2569.4,1.1669]
[1727021083672,4.71867,2569.9,2567.8,3.2078]
[1727021083673,7.1868,2569.5,2567.8,3.2078]
[1727021083973,7.1868,2569.5,2568.2,3.2078]
[1727021083974,1.4,2568.4,2568.2,3.2078]
[1727021084172,1.4,2568.4,2568.3,3.2078]
[1727021084374,1.801,2568.4,2568.3,3.2078]
[1727021086177,0.401,2568.4,2568.3,3.2078]
[1727021091785,0.3964,2568.6,2568.3,3.2078]
[1727021092288,0.3964,2568.6,2568.4,0.3881]
[1727021092502,0.38924,2569.0,2568.4,4.6879]
[1727021092678,0.3938,2568.9,2568.7,3.2078]
[1727021100884,3.42926,2568.8,2568.7,3.2078]
[1727021101291,7.32206,2568.8,2568.7,3.2078]
[1727021102091,3.42926,2568.8,2568.7,3.2078]
[1727021102297,3.42926,2568.8,2567.7,12.557]
[1727021102298,0.38944,2567.7,2567.0,3.11801473]
[1727021102591,3.2078,2567.4,2567.1,1.1702]
[1727021102891,1.52020831,2568.0,2567.2,3.04]
[1727021103084,1.52020831,2568.0,2567.1,12.10054087]
[1727021103085,0.272,2568.3,2567.4,3.04]
[1727021103292,0.38936,2568.2,2567.4,3.42946]
[1727021103591,0.38936,2568.2,2567.5,8.73980087]
[1727021103786,3.04,2568.1,2567.8,3.2078]
[1727021104099,0.38939,2568.0,2567.6,0.773]
[1727021104286,0.3894,2567.9,2567.6,0.773]
[1727021104593,0.3894,2568.0,2567.6,0.773]
[1727021104894,0.38938,2568.0,2567.6,0.773]
[1727021105192,3.04,2568.1,2567.6,0.773]
[1727021105394,0.38939,2568.0,2567.6,0.773]
[1727021107194,3.82408,2568.1,2567.6,0.773]
[1727021107395,0.38938,2568.0,2567.6,0.773]
[1727021108199,0.38938,2568.0,2567.7,0.3873]
[1727021108798,0.38939,2568.0,2567.7,0.3873]
[1727021109889,3.82407,2568.1,2567.7,0.3873]
[1727021112200,0.3894,2567.9,2567.7,0.3873]
[1727021112495,0.38939,2568.0,2567.7,0.3873]
[1727021115008,0.3894,2568.0,2567.7,0.3873]
[1727021115197,0.3894,2567.9,2567.7,0.3873]
[1727021115794,3.4347,2568.1,2567.7,0.3873]
[1727021116097,0.38938,2568.0,2567.7,0.3873]
[1727021116606,3.4347,2568.1,2567.7,0.3873]
[1727021116607,0.38941,2567.8,2567.7,0.3873]
[1727021116802,3.42941,2567.9,2567.7,0.3873]
[1727021117095,0.3947,2568.1,2567.7,0.3873]
[1727021117096,0.38939,2568.0,2567.7,0.3873]
[1727021117402,0.3894,2567.9,2567.7,0.3873]
[1727021118207,0.3947,2568.1,2567.7,0.3873]
[1727021118208,0.38939,2568.0,2567.7,0.3873]
[1727021118393,0.3894,2567.9,2567.7,0.3873]
[1727021120193,0.38941,2567.8,2567.7,0.3873]
[1727021120601,1.78941,2567.9,2567.7,0.3873]
[1727021122519,0.38941,2567.8,2567.7,0.3873]
[1727021122993,1.4,2567.9,2567.7,0.3873]
[1727021123195,1.78941,2567.9,2567.7,0.3873]
[1727021126907,0.38941,2567.8,2567.7,0.3873]
[1727021129610,0.1148,2567.9,2567.7,0.3873]
[1727021129803,0.1148,2567.9,2567.7,1.7873]